fUST/lending_fUST_20250529
["ID","MTS","AMOUNT","RATE_DAILY","PERIOD"]
[362935551,1748525471707,-500.0,0.00016159,2]
[362935552,1748525471716,-500.0,0.00016159,2]
[362935553,1748525471726,-500.0,0.00016159,2]
[362935554,1748525471736,-500.0,0.00016159,2]
[362935555,1748525471745,-500.0,0.00016159,2]
[362935556,1748525471756,-500.0,0.00016159,2]
[362935557,1748525471766,-500.0,0.00016159,2]
[362935558,1748525471777,-500.0,0.00016159,2]
[362935559,1748525471787,-500.0,0.00016159,2]
[362935560,1748525471796,-500.0,0.00016159,2]
[362935561,1748525471805,-500.0,0.00016159,2]
[362935562,1748525471815,-318.51212444,0.00018399,2]
[362935563,1748525471827,-699.52492944,0.00018399,2]
[362935564,1748525471836,-500.0,0.00018399,2]
[362935565,1748525471845,-500.0,0.00018399,2]
[362935566,1748525471854,-1018.03705388,0.00018399,2]
[362935567,1748525471862,-1018.03705388,0.00018399,2]
[362935568,1748525471871,-1018.03705388,0.00018399,2]
[362935569,1748525471880,-644.5000348,0.00018399,2]
[362935570,1748525471890,-1018.03705388,0.00018399,2]
[362935571,1748525471898,-1018.03705388,0.00018399,2]
[362935572,1748525471907,-1018.03705388,0.00018399,2]
[362935573,1748525471917,-1018.03705388,0.00018399,2]
[362935574,1748525472017,-1018.03705388,0.00018399,2]
[362935575,1748525472030,-1018.03705388,0.00018399,2]
[362935576,1748525472040,-1018.03705388,0.00018399,2]
[362935577,1748525472050,-1018.03705388,0.00018399,2]
[362935578,1748525472060,-500.0,0.00019178,2]
[362935579,1748525472069,-250.77334986,0.00019178,2]
[362935580,1748525472079,-430.0,0.00019178,2]
[362935581,1748525472088,-430.0,0.00019178,2]
[362935582,1748525472098,-430.0,0.00019178,2]
[362935583,1748525472107,-430.0,0.00019178,2]
[362935584,1748525472117,-443.83483562,0.00019178,2]
[362935585,1748525472126,-430.0,0.00019178,2]
[362935586,1748525472135,-430.0,0.00019178,2]
[362935587,1748525472144,-430.0,0.00019178,2]
[362935588,1748525472154,-739.77,0.00019178,2]
[362935589,1748525472163,-430.0,0.00019452,2]
[362935590,1748525472173,-451.35392688,0.00019452,2]
[362935591,1748525472183,-430.0,0.00019452,2]
[362935592,1748525472193,-430.0,0.00019452,2]
[362935593,1748525472203,-430.0,0.00019452,2]
[362935594,1748525472212,-739.77,0.00019452,2]
[362935595,1748525472221,-430.0,0.00019726,2]
[362935596,1748525472231,-230.0,0.00019726,2]
[362935597,1748525472240,-430.0,0.00019726,2]
[362935598,1748525472249,-430.0,0.00019726,2]
[362935599,1748525472259,-739.77,0.00019726,2]
[362935600,1748525472271,-430.0,0.0002,2]
[362935601,1748525472280,-428.58738268,0.0002,2]
[362935602,1748525472295,-430.0,0.0002,2]
[362935603,1748525472306,-739.77,0.0002,2]
[362935604,1748525472315,-430.0,0.00020273,2]
[362935605,1748525472325,-430.0,0.00020273,2]
[362935606,1748525472335,-739.77,0.00020273,2]
[362935607,1748525472344,-430.0,0.00020547,2]
[362935608,1748525472354,-430.0,0.00020547,2]
[362935609,1748525472363,-739.77,0.00020547,2]
[362935610,1748525472373,-430.0,0.00020821,2]
[362935611,1748525472383,-431.51,0.00020821,2]
[362935612,1748525472393,-430.0,0.00021095,2]
[362935613,1748525472404,-430.0,0.00021369,2]
[362935614,1748525472414,-430.0,0.00021643,2]
[362935615,1748525472423,-1074.488748,0.00021917,2]
[362935616,1748525472432,-430.0,0.00021917,2]
[362935617,1748525472442,-500.0,0.00021918,2]
[362935618,1748525472451,-500.0,0.00021918,2]
[362935619,1748525472461,-500.0,0.00021918,2]
[362935620,1748525472470,-500.0,0.00021918,2]
[362935621,1748525472480,-500.0,0.00021918,2]
[362935622,1748525472490,-230.09336661,0.00021918,2]
[362935623,1748525472499,-500.0,0.00021918,2]
[362935624,1748525472509,-500.0,0.00021918,2]
[362935625,1748525472520,-500.0,0.00021918,2]
[362935626,1748525472529,-430.0,0.00022191,2]
[362935627,1748525472539,-430.0,0.00022465,2]
[362935628,1748525472549,-430.0,0.00022465,2]
[362935629,1748525472559,-430.0,0.00022739,2]
[362935630,1748525472569,-430.0,0.00022739,2]
[362935631,1748525472578,-484.06,0.00023013,2]
[362935632,1748525472587,-430.0,0.00023013,2]
[362935633,1748525472597,-208.12,0.00023287,2]
[362935634,1748525472607,-1074.488748,0.000249,7]
[362935635,1748525472617,-983580.05129411,0.00025,30]
[362935636,1748525472629,-874.88748006,0.00025,30]
[362935637,1748525472645,-13850.96087104,0.00025,30]
[362935638,1748525472655,-500.0,0.00025,2]
[362935639,1748525472664,-676.83872477,0.00025,2]
[362935640,1748525472674,-120000.0,0.00025,2]
[362935641,1748525472684,-321.0,0.00025,15]
[362935642,1748525472694,-150.0,0.00025,2]
[362935643,1748525472703,-150.0,0.00025,2]
[362935644,1748525472713,-167760.96778599,0.00025,120]
[362935645,1748525472722,-20000.28463521,0.00025,2]
[362935646,1748525472732,-2000.0,0.00025,2]
[362935647,1748525472741,-1094106.56675927,0.00025,30]
[362935648,1748525472753,-5841.70346824,0.00025,30]
[362935649,1748525472900,-300.0,0.00016158,2]
[362935650,1748525472909,-430.0,0.00019178,2]
[362935651,1748525472919,-322.22398152,0.00019178,2]
[362935652,1748525472928,-430.0,0.00019178,2]
[362935653,1748525472938,-430.0,0.00019452,2]
[362935654,1748525472947,-430.0,0.00019726,2]
[362935655,1748525472957,-430.0,0.0002,2]
[362935656,1748525472966,-430.0,0.00020273,2]
[362935657,1748525472975,-218.57,0.00020547,2]
[362935658,1748525472984,-739.77,0.00020821,2]
[362935659,1748525472994,-739.77,0.00021095,2]
[362935660,1748525473003,-739.77,0.00021369,2]
[362935661,1748525473013,-739.77,0.00021643,2]
[362935662,1748525473024,-739.77,0.00021917,2]
[362935663,1748525473034,-1074.488748,0.00021917,2]
[362935664,1748525473043,-739.77,0.00022191,2]
[362935665,1748525473053,-739.77,0.00022465,2]
[362935666,1748525473062,-8278.73991492,0.00025,30]
[362935667,1748525473416,-218.95493723,0.00025,30]
[362935668,1748525473427,-81703.55128604,0.00025,30]
[362935669,1748525473614,-420.0,0.00017663,2]
[362935670,1748525473623,-430.0,0.00019178,2]
[362935671,1748525473633,-430.0,0.00019178,2]
[362935672,1748525473643,-587.0,0.00019309,2]
[362935673,1748525473652,-430.0,0.00019452,2]
[362935674,1748525473662,-432.0471224,0.00019452,2]
[362935675,1748525473671,-430.0,0.00019726,2]
[362935676,1748525473680,-430.0,0.0002,2]
[362935677,1748525473689,-411.71,0.00020273,2]
[362935678,1748525473698,-739.77,0.00022739,2]
[362935679,1748525473707,-739.77,0.00023013,2]
[362935680,1748525473716,-739.77,0.00023287,2]
[362935681,1748525473725,-739.77,0.00023561,2]
[362935682,1748525473735,-739.77,0.00023835,2]
[362935683,1748525473745,-739.77,0.00024109,2]
[362935684,1748525473754,-739.77,0.00024383,2]
[362935685,1748525473763,-739.77,0.00024657,2]
[362935686,1748525473776,-1074.488748,0.000249,7]
[362935687,1748525473786,-739.77,0.00024931,2]
[362935688,1748525473795,-1169757.01331726,0.00025,30]
[362935689,1748525473807,-1399.14116771,0.00025,30]
[362935690,1748525474069,-5000.0,0.00015996,2]
[362935691,1748525474079,-562.10826671,0.00019178,2]
[362935692,1748525474088,-430.0,0.00019178,2]
[362935693,1748525474097,-430.0,0.00019178,2]
[362935694,1748525474107,-430.0,0.00019178,2]
[362935695,1748525474116,-466.83916852,0.00019178,2]
[362935696,1748525474126,-430.0,0.00019178,2]
[362935697,1748525474135,-430.0,0.00019452,2]
[362935698,1748525474144,-430.0,0.00019452,2]
[362935699,1748525474154,-430.0,0.00019452,2]
[362935700,1748525474163,-430.0,0.00019726,2]
[362935701,1748525474172,-365.66,0.00019726,2]
[362935702,1748525474181,-430.0,0.00019726,2]
[362935703,1748525474194,-5968.39256477,0.00025,30]
[362935707,1748525710286,194.051408,0.00013699,2]
[362935709,1748525812068,62394.529046,0.00023,120]
[362935710,1748525915049,-5000.0,0.00015005,2]
[362935711,1748525915069,-253.45635099,0.00015042,2]
[362935712,1748525915095,-7554.5260877,0.00015117,2]
[362935713,1748525915114,-24528.01756131,0.00015142,2]
[362935714,1748525996835,60000.0,0.00022,30]
[362935715,1748526004715,150.0,0.0001404,2]
[362935718,1748526280154,186.15,0.00013576,2]
[362935719,1748526282668,-189.68195928,0.00014222,2]
[362935721,1748526285660,-182.62804072,0.00014222,2]
[362935722,1748526317560,563.0,0.00022,30]
[362935724,1748526335280,177.31081068,0.00022,30]
[362935725,1748526353180,-5000.0,0.00014416,2]
[362935726,1748526353201,-376.91,0.00014553,2]
[362935727,1748526353222,-2977.7596055,0.00014772,2]
[362935728,1748526353243,-1200.0,0.00014862,2]
[362935729,1748526353264,-300.0,0.00014862,2]
[362935730,1748526353284,-1843.4085792,0.00014863,2]
[362935731,1748526353306,-300.0,0.00014868,2]
[362935732,1748526353326,-300.0,0.00014868,2]
[362935733,1748526353346,-300.0,0.00014868,2]
[362935734,1748526353366,-300.0,0.00014868,2]
[362935735,1748526353387,-371.98243869,0.00015142,2]
[362935736,1748526353412,-308.731389,0.00015156,2]
[362935737,1748526353433,-753.81,0.00015246,2]
[362935738,1748526353454,-185.23210778,0.00016052,2]
[362935739,1748526353473,-673.75203956,0.000161,2]
[362935740,1748526353494,-50000.0,0.00016152,2]
[362935741,1748526353516,-500.0,0.00016152,2]
[362935742,1748526353536,-500.0,0.00016152,2]
[362935743,1748526353556,-500.0,0.00016152,2]
[362935744,1748526353580,-500.0,0.00016152,2]
[362935745,1748526353602,-500.0,0.00016152,2]
[362935746,1748526353621,-392.99794509,0.00016152,2]
[362935747,1748526353641,-500.0,0.00016152,2]
[362935748,1748526353668,-500.0,0.00016152,2]
[362935749,1748526353689,-598.38001326,0.00016152,2]
[362935750,1748526353709,-293.77557529,0.00016152,2]
[362935751,1748526353729,-187.43015627,0.00016152,2]
[362935752,1748526353750,-500.0,0.00016152,2]
[362935753,1748526353775,-500.0,0.00016152,2]
[362935754,1748526353796,-500.0,0.00016152,2]
[362935755,1748526353818,-500.0,0.00016152,2]
[362935756,1748526353838,-500.0,0.00016152,2]
[362935757,1748526353860,-500.0,0.00016152,2]
[362935758,1748526353879,-449.01202973,0.00016152,2]
[362935759,1748526353904,-500.0,0.00016152,2]
[362935760,1748526353925,-500.0,0.00016152,2]
[362935761,1748526353945,-500.0,0.00016152,2]
[362935762,1748526353966,-300.0,0.00016152,2]
[362935763,1748526353989,-500.0,0.00016152,2]
[362935764,1748526354010,-500.0,0.00016152,2]
[362935765,1748526354032,-500.0,0.00016152,2]
[362935766,1748526354054,-245.13484468,0.00016152,2]
[362935767,1748526354075,-500.0,0.00016152,2]
[362935768,1748526354100,-500.0,0.00016152,2]
[362935769,1748526354125,-500.0,0.00016152,2]
[362935770,1748526354149,-500.0,0.00016152,2]
[362935771,1748526354176,-500.0,0.00016152,2]
[362935772,1748526354198,-500.0,0.00016152,2]
[362935773,1748526354220,-500.0,0.00016152,2]
[362935774,1748526354242,-500.0,0.00016152,2]
[362935775,1748526354264,-500.0,0.00016152,2]
[362935776,1748526354285,-500.0,0.00016152,2]
[362935777,1748526354308,-500.0,0.00016152,2]
[362935778,1748526354330,-500.0,0.00016152,2]
[362935779,1748526354351,-500.0,0.00016152,2]
[362935780,1748526354373,-500.0,0.00016152,2]
[362935781,1748526354394,-500.0,0.00016152,2]
[362935782,1748526354418,-500.0,0.00016152,2]
[362935783,1748526354439,-500.0,0.00016152,2]
[362935784,1748526354459,-500.0,0.00016152,2]
[362935785,1748526354480,-500.0,0.00016152,2]
[362935786,1748526354502,-500.0,0.00016152,2]
[362935787,1748526354524,-500.0,0.00016152,2]
[362935788,1748526354546,-500.0,0.00016152,2]
[362935789,1748526354568,-500.0,0.00016152,2]
[362935790,1748526354589,-500.0,0.00016152,2]
[362935791,1748526354611,-500.0,0.00016152,2]
[362935792,1748526354632,-500.0,0.00016152,2]
[362935793,1748526354657,-500.0,0.00016152,2]
[362935794,1748526354680,-500.0,0.00016152,2]
[362935795,1748526354701,-500.0,0.00016152,2]
[362935796,1748526354723,-500.0,0.00016152,2]
[362935797,1748526354744,-500.0,0.00016152,2]
[362935798,1748526354768,-500.0,0.00016152,2]
[362935799,1748526354790,-539.37881996,0.00016152,2]
[362935800,1748526354812,-500.0,0.00016152,2]
[362935801,1748526354833,-500.0,0.00016152,2]
[362935802,1748526354854,-500.0,0.00016152,2]
[362935803,1748526354875,-500.0,0.00016152,2]
[362935804,1748526354899,-500.0,0.00016152,2]
[362935805,1748526354921,-500.0,0.00016152,2]
[362935806,1748526354943,-500.0,0.00016152,2]
[362935807,1748526354964,-500.0,0.00016152,2]
[362935808,1748526354986,-500.0,0.00016152,2]
[362935809,1748526355006,-151.0,0.00016152,2]
[362935810,1748526355026,-151.0,0.00016152,2]
[362935811,1748526355046,-151.0,0.00016179,2]
[362935812,1748526355066,-151.0,0.00016207,2]
[362935813,1748526355086,-274.87297149,0.00016213,2]
[362935814,1748526355109,-151.0,0.00016234,2]
[362935815,1748526355130,-244.64135997,0.00016262,2]
[362935816,1748526355152,-420.0,0.00016268,2]
[362935817,1748526355172,-420.0,0.00016274,2]
[362935818,1748526355193,-420.0,0.00016274,2]
[362935819,1748526355214,-1680.0,0.00016348,2]
[362935820,1748526355235,-587.0,0.00017807,2]
[362935821,1748526355256,-500.0,0.00018392,2]
[362935822,1748526355276,-500.0,0.00018392,2]
[362935823,1748526355298,-1315.65101867,0.00018392,2]
[362935824,1748526355319,-304.16786148,0.00018392,2]
[362935825,1748526355343,-1315.65101867,0.00018392,2]
[362935826,1748526355365,-1315.65101867,0.00018392,2]
[362935827,1748526355388,-1315.65101867,0.00018392,2]
[362935828,1748526355412,-1315.65101867,0.00018392,2]
[362935829,1748526355435,-1315.65101867,0.00018392,2]
[362935830,1748526355457,-500.0,0.00018392,2]
[362935831,1748526355478,-500.0,0.00018392,2]
[362935832,1748526355502,-1315.65101867,0.00018392,2]
[362935833,1748526355525,-500.0,0.00018392,2]
[362935834,1748526355550,-1315.65101867,0.00018392,2]
[362935835,1748526355571,-191.15002436,0.00018392,2]
[362935836,1748526355595,-1315.65101867,0.00018392,2]
[362935837,1748526355620,-1315.65101867,0.00018392,2]
[362935838,1748526355643,-1315.65101867,0.00018392,2]
[362935839,1748526355668,-1315.65101867,0.00018392,2]
[362935840,1748526355691,-1315.65101867,0.00018392,2]
[362935841,1748526355713,-1315.65101867,0.00018392,2]
[362935842,1748526355735,-1353.24104777,0.00018392,2]
[362935843,1748526355759,-1353.24104777,0.00018392,2]
[362935844,1748526355785,-1353.24104777,0.00018392,2]
[362935845,1748526355808,-1353.24104777,0.00018392,2]
[362935846,1748526355833,-1353.24104777,0.00018392,2]
[362935847,1748526355858,-1353.24104777,0.00018392,2]
[362935848,1748526355882,-1353.24104777,0.00018392,2]
[362935849,1748526355908,-1353.24104777,0.00018392,2]
[362935850,1748526355932,-1353.24104777,0.00018392,2]
[362935851,1748526355957,-1353.24104777,0.00018392,2]
[362935852,1748526355981,-1338.91261314,0.00018392,2]
[362935853,1748526356004,-1338.91261314,0.00018392,2]
[362935854,1748526356028,-1338.91261314,0.00018392,2]
[362935855,1748526356053,-1338.91261314,0.00018392,2]
[362935856,1748526356217,-1338.91261314,0.00018392,2]
[362935857,1748526356238,-235.19890627,0.00018392,2]
[362935858,1748526356259,-524.01718722,0.00018392,2]
[362935859,1748526356287,-636.11745484,0.000184,2]
[362935860,1748526356315,-636.1174547,0.000184,2]
[362935861,1748526356340,-636.1174547,0.000184,2]
[362935862,1748526356367,-636.1174547,0.000184,2]
[362935863,1748526356395,-636.1174547,0.000184,2]
[362935864,1748526356425,-636.1174547,0.000184,2]
[362935865,1748526356452,-636.1174547,0.000184,2]
[362935866,1748526356479,-636.1174547,0.000184,2]
[362935867,1748526356509,-636.1174547,0.000184,2]
[362935868,1748526356536,-636.1174547,0.00018693,2]
[362935869,1748526356558,-153.10620228,0.00018956,2]
[362935870,1748526356584,-636.1174547,0.00019003,2]
[362935871,1748526356605,-691.77093541,0.00019078,2]
[362935872,1748526356626,-160.0,0.00019171,2]
[362935873,1748526356647,-543.19286507,0.00019173,2]
[362935874,1748526356669,-428.67864138,0.00019173,2]
[362935875,1748526356689,-500.0,0.00019173,2]
[362935876,1748526356709,-500.0,0.00019173,2]
[362935877,1748526356731,-500.0,0.00019173,2]
[362935878,1748526356752,-502.16413591,0.00019173,2]
[362935879,1748526356776,-445.02725255,0.00019173,2]
[362935880,1748526356795,-499.03387897,0.00019173,2]
[362935881,1748526356816,-430.0,0.00019178,2]
[362935882,1748526356836,-430.0,0.00019178,2]
[362935883,1748526356856,-430.0,0.00019178,2]
[362935884,1748526356877,-430.0,0.00019178,2]
[362935885,1748526356900,-430.0,0.00019178,2]
[362935886,1748526356920,-150.84365047,0.00019178,2]
[362935887,1748526356941,-430.0,0.00019178,2]
[362935888,1748526356962,-352.55406051,0.00019178,2]
[362935889,1748526356982,-430.0,0.00019178,2]
[362935890,1748526357002,-430.0,0.00019178,2]
[362935891,1748526357022,-224.89510812,0.00019178,2]
[362935892,1748526357043,-430.0,0.00019178,2]
[362935893,1748526357063,-436.4,0.00019178,2]
[362935894,1748526357083,-559.70322068,0.00019178,2]
[362935895,1748526357104,-179.93249987,0.00019178,2]
[362935896,1748526357125,-430.0,0.00019178,2]
[362935897,1748526357144,-430.0,0.00019178,2]
[362935898,1748526357167,-430.0,0.00019178,2]
[362935899,1748526357187,-1000.0,0.00019178,2]
[362935900,1748526357207,-430.0,0.00019178,2]
[362935901,1748526357227,-430.0,0.00019178,2]
[362935902,1748526357247,-430.0,0.00019178,2]
[362935903,1748526357268,-430.0,0.00019178,2]
[362935904,1748526357288,-430.0,0.00019178,2]
[362935905,1748526357309,-430.0,0.00019178,2]
[362935906,1748526357329,-430.0,0.00019178,2]
[362935907,1748526357349,-430.0,0.00019178,2]
[362935908,1748526357369,-430.0,0.00019178,2]
[362935909,1748526357389,-430.0,0.00019178,2]
[362935910,1748526357412,-430.0,0.00019178,2]
[362935911,1748526357433,-430.0,0.00019178,2]
[362935912,1748526357454,-430.0,0.00019178,2]
[362935913,1748526357474,-430.0,0.00019178,2]
[362935914,1748526357495,-430.0,0.00019178,2]
[362935915,1748526357516,-430.0,0.00019178,2]
[362935916,1748526357537,-430.0,0.00019178,2]
[362935917,1748526357558,-430.0,0.00019178,2]
[362935918,1748526357578,-430.0,0.00019178,2]
[362935919,1748526357599,-430.0,0.00019178,2]
[362935920,1748526357620,-430.0,0.00019178,2]
[362935921,1748526357643,-430.0,0.00019178,2]
[362935922,1748526357666,-400.0,0.00019178,2]
[362935923,1748526357687,-430.0,0.00019178,2]
[362935924,1748526357708,-430.0,0.00019178,2]
[362935925,1748526357728,-430.0,0.00019178,2]
[362935926,1748526357748,-430.0,0.00019178,2]
[362935927,1748526357769,-403.25576245,0.00019178,2]
[362935928,1748526357793,-430.0,0.00019178,2]
[362935929,1748526357814,-430.0,0.00019178,2]
[362935930,1748526357835,-430.0,0.00019178,2]
[362935931,1748526357856,-531.53659925,0.00019178,2]
[362935932,1748526357877,-430.0,0.00019178,2]
[362935933,1748526357897,-350.0,0.00019178,2]
[362935934,1748526357920,-430.0,0.00019178,2]
[362935935,1748526357941,-400.0,0.00019178,2]
[362935936,1748526357963,-430.0,0.00019178,2]
[362935937,1748526357982,-419.34525243,0.00019178,2]
[362935938,1748526358002,-430.0,0.00019178,2]
[362935939,1748526358021,-430.0,0.00019178,2]
[362935940,1748526358040,-400.0,0.00019178,2]
[362935941,1748526358059,-430.0,0.00019178,2]
[362935942,1748526358078,-430.0,0.00019178,2]
[362935943,1748526358097,-430.0,0.00019178,2]
[362935944,1748526358117,-430.0,0.00019178,2]
[362935945,1748526358135,-451.79554691,0.00019178,2]
[362935946,1748526358156,-215.74976554,0.00019178,2]
[362935947,1748526358176,-430.0,0.00019178,2]
[362935948,1748526358196,-400.0,0.00019178,2]
[362935949,1748526358215,-430.0,0.00019178,2]
[362935950,1748526358234,-430.0,0.00019178,2]
[362935951,1748526358253,-430.0,0.00019178,2]
[362935952,1748526358272,-360.0,0.00019178,2]
[362935953,1748526358292,-235.92462203,0.00019178,2]
[362935954,1748526358311,-430.0,0.00019178,2]
[362935955,1748526358330,-430.0,0.00019178,2]
[362935956,1748526358351,-249.19350403,0.00019178,2]
[362935957,1748526358370,-173.18461011,0.00019178,2]
[362935958,1748526358391,-430.0,0.00019178,2]
[362935959,1748526358412,-470.67927095,0.00019178,2]
[362935960,1748526358430,-430.0,0.00019178,2]
[362935961,1748526358449,-430.0,0.00019178,2]
[362935962,1748526358468,-430.0,0.00019178,2]
[362935963,1748526358487,-340.0,0.00019178,2]
[362935964,1748526358506,-430.0,0.00019178,2]
[362935965,1748526358525,-430.0,0.00019178,2]
[362935966,1748526358544,-430.0,0.00019178,2]
[362935967,1748526358563,-430.0,0.00019178,2]
[362935968,1748526358581,-430.0,0.00019178,2]
[362935969,1748526358600,-430.0,0.00019178,2]
[362935970,1748526358620,-430.0,0.00019178,2]
[362935971,1748526358641,-430.0,0.00019178,2]
[362935972,1748526358661,-430.0,0.00019178,2]
[362935973,1748526358682,-430.0,0.00019178,2]
[362935974,1748526358704,-430.0,0.00019178,2]
[362935975,1748526358724,-430.0,0.00019178,2]
[362935976,1748526358744,-430.0,0.00019178,2]
[362935977,1748526358764,-373.04480341,0.00019178,2]
[362935978,1748526358787,-430.0,0.00019178,2]
[362935979,1748526358806,-430.0,0.00019178,2]
[362935980,1748526358825,-430.0,0.00019178,2]
[362935981,1748526358844,-430.0,0.00019178,2]
[362935982,1748526358866,-430.0,0.00019178,2]
[362935983,1748526358886,-430.0,0.00019178,2]
[362935984,1748526358907,-430.0,0.00019178,2]
[362935985,1748526358926,-430.0,0.00019178,2]
[362935986,1748526358947,-430.0,0.00019178,2]
[362935987,1748526358968,-430.0,0.00019178,2]
[362935988,1748526358988,-430.0,0.00019178,2]
[362935989,1748526359007,-430.0,0.00019178,2]
[362935990,1748526359027,-559.15227377,0.00019178,2]
[362935991,1748526359046,-169.99216408,0.00019178,2]
[362935992,1748526359066,-430.0,0.00019178,2]
[362935993,1748526359086,-430.0,0.00019178,2]
[362935994,1748526359105,-430.0,0.00019178,2]
[362935995,1748526359125,-430.0,0.00019178,2]
[362935996,1748526359144,-430.0,0.00019178,2]
[362935997,1748526359165,-430.0,0.00019178,2]
[362935998,1748526359184,-447.7056724,0.00019178,2]
[362935999,1748526359205,-430.0,0.00019178,2]
[362936000,1748526359224,-430.0,0.00019178,2]
[362936001,1748526359244,-430.0,0.00019178,2]
[362936002,1748526359264,-430.0,0.00019178,2]
[362936003,1748526359284,-430.0,0.00019178,2]
[362936004,1748526359304,-430.0,0.00019178,2]
[362936005,1748526359323,-430.0,0.00019178,2]
[362936006,1748526359343,-430.0,0.00019178,2]
[362936007,1748526359363,-338.50915751,0.00019178,2]
[362936008,1748526359383,-430.0,0.00019178,2]
[362936009,1748526359404,-430.0,0.00019178,2]
[362936010,1748526359424,-430.0,0.00019178,2]
[362936011,1748526359444,-430.0,0.00019178,2]
[362936012,1748526359464,-430.0,0.00019178,2]
[362936013,1748526359483,-430.0,0.00019178,2]
[362936014,1748526359504,-430.0,0.00019178,2]
[362936015,1748526359523,-430.0,0.00019178,2]
[362936016,1748526359543,-430.0,0.00019178,2]
[362936017,1748526359563,-430.0,0.00019178,2]
[362936018,1748526359583,-430.0,0.00019178,2]
[362936019,1748526359602,-430.0,0.00019178,2]
[362936020,1748526359622,-430.0,0.00019178,2]
[362936021,1748526359641,-430.0,0.00019178,2]
[362936022,1748526359663,-430.0,0.00019178,2]
[362936023,1748526359683,-430.0,0.00019178,2]
[362936024,1748526359705,-430.0,0.00019178,2]
[362936025,1748526359726,-430.0,0.00019178,2]
[362936026,1748526359746,-503.12747248,0.00019178,2]
[362936027,1748526359770,-430.0,0.00019178,2]
[362936028,1748526359920,-430.0,0.00019178,2]
[362936029,1748526359942,-430.0,0.00019178,2]
[362936030,1748526359965,-430.0,0.00019178,2]
[362936031,1748526359986,-430.0,0.00019178,2]
[362936032,1748526360011,-430.0,0.00019178,2]
[362936033,1748526360033,-430.0,0.00019178,2]
[362936034,1748526360055,-500.0,0.00019178,2]
[362936035,1748526360076,-260.73266921,0.00019178,2]
[362936036,1748526360098,-500.54626367,0.00019178,2]
[362936037,1748526360120,-401.2892377,0.00019178,2]
[362936038,1748526360142,-430.0,0.00019178,2]
[362936039,1748526360164,-430.0,0.00019178,2]
[362936040,1748526360186,-430.0,0.00019178,2]
[362936041,1748526360209,-430.0,0.00019178,2]
[362936042,1748526360234,-430.0,0.00019178,2]
[362936043,1748526360258,-430.0,0.00019178,2]
[362936044,1748526360280,-430.0,0.00019178,2]
[362936045,1748526360301,-430.0,0.00019178,2]
[362936046,1748526360322,-430.0,0.00019178,2]
[362936047,1748526360343,-430.0,0.00019178,2]
[362936048,1748526360364,-500.0,0.00019178,2]
[362936049,1748526360385,-430.0,0.00019178,2]
[362936050,1748526360408,-572.42930593,0.00019178,2]
[362936051,1748526360430,-430.0,0.00019178,2]
[362936052,1748526360450,-430.0,0.00019178,2]
[362936053,1748526360471,-430.0,0.00019178,2]
[362936054,1748526360491,-430.0,0.00019178,2]
[362936055,1748526360512,-430.0,0.00019178,2]
[362936056,1748526360532,-430.0,0.00019178,2]
[362936057,1748526360553,-430.0,0.00019178,2]
[362936058,1748526360574,-430.0,0.00019178,2]